[Event "Titled Tuesday Blitz February 21 Early 2023"]
[White "Anuj, Shrivatri"]
[Black "Sharapov, Evgeny"]
[WhiteFideId "35070924"]
[BlackFideId "14103133"]
[WhiteElo "2407"]
[BlackElo "2375"]
[Result "1-0"]
[Round "07"]
[TimeControl "180+2"]
[Date "2023.02.21"]
[WhiteClock "0:02:40"]
[BlackClock "0:02:15"]

1. Nf3 {[%clk 0:03:00]}  c5 {[%clk 0:02:59]} 2. c4 {[%clk 0:03:00]}  Nc6 {[%clk 0:02:59]} 3. g3 {[%clk 0:03:00]}  e5 {[%clk 0:02:59]} 4. Bg2 {[%clk 0:03:00]}  g6 {[%clk 0:02:59]} 5. O-O {[%clk 0:03:00]}  Bg7 {[%clk 0:02:59]} 6. Nc3 {[%clk 0:03:01]}  d6 {[%clk 0:03:00]} 7. a3 {[%clk 0:02:59]}  a5 {[%clk 0:03:00]} 8. d3 {[%clk 0:02:59]}  Nge7 {[%clk 0:02:59]} 9. Bg5 {[%clk 0:02:57]}  O-O {[%clk 0:02:58]} 10. Ne1 {[%clk 0:02:55]}  f6 {[%clk 0:02:57]} 11. Be3 {[%clk 0:02:55]}  Be6 {[%clk 0:02:57]} 12. Rb1 {[%clk 0:02:55]}  Rb8 {[%clk 0:02:57]} 13. Nc2 {[%clk 0:02:55]}  b6 {[%clk 0:02:57]} 14. b4 {[%clk 0:02:55]}  axb4 {[%clk 0:02:57]} 15. axb4 {[%clk 0:02:56]}  cxb4 {[%clk 0:02:55]} 16. Nxb4 {[%clk 0:02:57]}  Nxb4 {[%clk 0:02:55]} 17. Rxb4 {[%clk 0:02:58]}  d5 {[%clk 0:02:56]} 18. cxd5 {[%clk 0:02:58]}  Nxd5 {[%clk 0:02:55]} 19. Nxd5 {[%clk 0:02:59]}  Bxd5 {[%clk 0:02:56]} 20. Bxd5+ {[%clk 0:02:50]}  Qxd5 {[%clk 0:02:56]} 21. Qb3 {[%clk 0:02:49]}  Qxb3 {[%clk 0:02:53]} 22. Rxb3 {[%clk 0:02:50]}  Rfc8 {[%clk 0:02:44]} 23. Rfb1 {[%clk 0:02:51]}  Rc2 {[%clk 0:02:42]} 24. Kf1 {[%clk 0:02:51]}  Rc6 {[%clk 0:02:32]} 25. Bxb6 {[%clk 0:02:47]}  Bh6 {[%clk 0:02:24]} 26. Kg2 {[%clk 0:02:42]}  Rc2 {[%clk 0:02:19]} 27. Kf3 {[%clk 0:02:42]}  f5 {[%clk 0:02:18]} 28. Be3 {[%clk 0:02:41]}  Rxb3 {[%clk 0:02:17]} 29. Rxb3 {[%clk 0:02:41]}  e4+ {[%clk 0:02:17]} 30. dxe4 {[%clk 0:02:41]}  fxe4+ {[%clk 0:02:18]} 31. Kxe4 {[%clk 0:02:42]}  Rxe2 {[%clk 0:02:15]} 32. Kf3 {[%clk 0:02:40]} 1-0


[Site "https://www.chess.com"]

[Event "Titled Tuesday Blitz February 21 Early 2023"]
[White "Real_OceanStorm"]
[Black "Kvaloy, Aksel Bu"]
[BlackFideId "1528815"]
[WhiteElo "2781"]
[BlackElo "2321"]
[Result "1-0"]
[Round "07"]
[TimeControl "180+2"]
[Date "2023.02.21"]
[WhiteClock "0:01:34"]
[BlackClock "0:01:07"]

1. e4 {[%clk 0:03:00]}  e5 {[%clk 0:02:58]} 2. Nf3 {[%clk 0:02:59]}  Nf6 {[%clk 0:02:55]} 3. Nc3 {[%clk 0:02:59]}  Nc6 {[%clk 0:02:54]} 4. Bc4 {[%clk 0:03:00]}  Nxe4 {[%clk 0:02:53]} 5. O-O {[%clk 0:02:57]}  Nf6 {[%clk 0:02:40]} 6. Re1 {[%clk 0:02:54]}  Bd6 {[%clk 0:02:37]} 7. d4 {[%clk 0:02:54]}  e4 {[%clk 0:02:32]} 8. d5 {[%clk 0:02:44]}  Na5 {[%clk 0:02:29]} 9. Nxe4 {[%clk 0:02:41]}  O-O {[%clk 0:02:06]} 10. Nxd6 {[%clk 0:02:39]}  cxd6 {[%clk 0:02:07]} 11. Bd3 {[%clk 0:02:40]}  Nxd5 {[%clk 0:02:04]} 12. Bxh7+ {[%clk 0:02:39]}  Kxh7 {[%clk 0:02:04]} 13. Qxd5 {[%clk 0:02:40]}  g6 {[%clk 0:01:47]} 14. Ng5+ {[%clk 0:02:31]}  Kg8 {[%clk 0:01:41]} 15. Ne4 {[%clk 0:02:03]}  Nc6 {[%clk 0:01:35]} 16. Bh6 {[%clk 0:02:02]}  Re8 {[%clk 0:01:20]} 17. Nf6+ {[%clk 0:01:57]}  Qxf6 {[%clk 0:01:20]} 18. Rxe8+ {[%clk 0:01:57]}  Kh7 {[%clk 0:01:21]} 19. Bg5 {[%clk 0:01:52]}  Qxb2 {[%clk 0:01:20]} 20. Rae1 {[%clk 0:01:52]}  Kg7 {[%clk 0:01:18]} 21. Qxd6 {[%clk 0:01:34]}  Qb4 {[%clk 0:01:07]} 22. Bf6+ {[%clk 0:01:34]} 1-0


[Site "https://www.chess.com"]

[Event "Titled Tuesday Blitz February 21 Early 2023"]
[White "Matinian, Nikita"]
[Black "Manukyan, Sargis A."]
[WhiteFideId "24129100"]
[BlackFideId "13303970"]
[WhiteElo "2407"]
[BlackElo "2158"]
[Result "0-1"]
[Round "07"]
[TimeControl "180+2"]
[Date "2023.02.21"]
[WhiteClock "0:00:04"]
[BlackClock "0:01:08"]

1. e4 {[%clk 0:03:00]}  c5 {[%clk 0:02:59]} 2. Nf3 {[%clk 0:03:00]}  d6 {[%clk 0:03:00]} 3. d4 {[%clk 0:03:00]}  cxd4 {[%clk 0:03:00]} 4. Nxd4 {[%clk 0:03:01]}  Nf6 {[%clk 0:03:00]} 5. Nc3 {[%clk 0:03:01]}  g6 {[%clk 0:03:00]} 6. Be3 {[%clk 0:03:01]}  Bg7 {[%clk 0:03:00]} 7. f3 {[%clk 0:03:01]}  O-O {[%clk 0:03:01]} 8. Qd2 {[%clk 0:03:02]}  Nc6 {[%clk 0:03:01]} 9. O-O-O {[%clk 0:03:02]}  d5 {[%clk 0:02:58]} 10. exd5 {[%clk 0:02:57]}  Nxd5 {[%clk 0:02:59]} 11. Nxc6 {[%clk 0:02:55]}  bxc6 {[%clk 0:03:00]} 12. Bd4 {[%clk 0:02:50]}  e5 {[%clk 0:02:59]} 13. Bc5 {[%clk 0:02:50]}  Be6 {[%clk 0:02:59]} 14. h4 {[%clk 0:02:46]}  h6 {[%clk 0:02:56]} 15. Ne4 {[%clk 0:02:41]}  Re8 {[%clk 0:02:56]} 16. Kb1 {[%clk 0:02:39]}  Qc7 {[%clk 0:02:55]} 17. g4 {[%clk 0:02:36]}  Red8 {[%clk 0:02:54]} 18. g5 {[%clk 0:02:12]}  Nc3+ {[%clk 0:02:37]} 19. Nxc3 {[%clk 0:02:05]}  Rxd2 {[%clk 0:02:36]} 20. Rxd2 {[%clk 0:02:06]}  hxg5 {[%clk 0:02:24]} 21. hxg5 {[%clk 0:02:06]}  e4 {[%clk 0:02:25]} 22. Nxe4 {[%clk 0:01:41]}  Qe5 {[%clk 0:01:58]} 23. Bd4 {[%clk 0:01:31]}  Qa5 {[%clk 0:01:51]} 24. b3 {[%clk 0:01:09]}  Bxd4 {[%clk 0:01:31]} 25. Rxd4 {[%clk 0:01:09]}  Qe1+ {[%clk 0:01:31]} 26. Kb2 {[%clk 0:01:09]}  Kg7 {[%clk 0:01:24]} 27. Bg2 {[%clk 0:00:30]}  Qe3 {[%clk 0:01:23]} 28. Rd3 {[%clk 0:00:27]}  Qf4 {[%clk 0:01:22]} 29. Bh3 {[%clk 0:00:18]}  Bd5 {[%clk 0:01:18]} 30. Nf6 {[%clk 0:00:07]}  Bxf3 {[%clk 0:01:09]} 31. Rf1 {[%clk 0:00:05]}  Qe5+ {[%clk 0:01:10]} 32. Kb1 {[%clk 0:00:05]}  Be2 {[%clk 0:01:10]} 33. Nd7 {[%clk 0:00:04]}  Qxg5 {[%clk 0:01:08]} 0-1


[Site "https://www.chess.com"]

[Event "Titled Tuesday Blitz February 21 Early 2023"]
[White "Cherniaiev, Tykhon"]
[Black "Budisavljevic, Luka"]
[WhiteFideId "14182360"]
[BlackFideId "960047"]
[WhiteElo "2330"]
[BlackElo "2488"]
[Result "1-0"]
[Round "07"]
[TimeControl "180+2"]
[Date "2023.02.21"]
[WhiteClock "0:00:56"]
[BlackClock "0:01:22"]

1. Nf3 {[%clk 0:03:00]}  g6 {[%clk 0:03:00]} 2. g3 {[%clk 0:02:59]}  Bg7 {[%clk 0:03:00]} 3. Bg2 {[%clk 0:02:59]}  Nf6 {[%clk 0:03:01]} 4. O-O {[%clk 0:02:59]}  O-O {[%clk 0:03:02]} 5. d4 {[%clk 0:03:00]}  d6 {[%clk 0:03:03]} 6. c4 {[%clk 0:03:01]}  Nbd7 {[%clk 0:03:04]} 7. Nc3 {[%clk 0:03:01]}  c6 {[%clk 0:03:05]} 8. Bf4 {[%clk 0:02:59]}  Qe8 {[%clk 0:03:02]} 9. Qd2 {[%clk 0:02:55]}  e5 {[%clk 0:01:54]} 10. dxe5 {[%clk 0:02:55]}  dxe5 {[%clk 0:01:55]} 11. Bh6 {[%clk 0:02:55]}  e4 {[%clk 0:01:54]} 12. Nd4 {[%clk 0:02:44]}  Qe5 {[%clk 0:01:45]} 13. Bf4 {[%clk 0:02:22]}  Qe7 {[%clk 0:01:43]} 14. Nb3 {[%clk 0:02:16]}  Rd8 {[%clk 0:01:42]} 15. Rad1 {[%clk 0:02:15]}  Re8 {[%clk 0:01:37]} 16. Qc2 {[%clk 0:01:37]}  Qe6 {[%clk 0:01:34]} 17. c5 {[%clk 0:01:29]}  a5 {[%clk 0:01:26]} 18. Rd4 {[%clk 0:01:23]}  a4 {[%clk 0:01:26]} 19. Nxa4 {[%clk 0:00:57]}  Nd5 {[%clk 0:01:22]} 20. Rxe4 {[%clk 0:00:56]} 1-0


[Site "https://www.chess.com"]

[Event "Titled Tuesday Blitz February 21 Early 2023"]
[White "Aggelis, Nikolaos"]
[Black "Starozhilov, Leonid"]
[WhiteFideId "4213220"]
[BlackFideId "14106752"]
[WhiteElo "2270"]
[BlackElo "2313"]
[Result "0-1"]
[Round "07"]
[TimeControl "180+2"]
[Date "2023.02.21"]
[WhiteClock "0:01:18"]
[BlackClock "0:01:40"]

1. d4 {[%clk 0:02:22]}  Nf6 {[%clk 0:02:58]} 2. g3 {[%clk 0:02:22]}  g6 {[%clk 0:02:57]} 3. Bg2 {[%clk 0:02:22]}  Bg7 {[%clk 0:02:58]} 4. Nf3 {[%clk 0:02:23]}  O-O {[%clk 0:02:58]} 5. O-O {[%clk 0:02:24]}  d6 {[%clk 0:02:59]} 6. b3 {[%clk 0:02:24]}  a5 {[%clk 0:02:57]} 7. a4 {[%clk 0:02:23]}  Nc6 {[%clk 0:02:57]} 8. Bb2 {[%clk 0:02:22]}  Bf5 {[%clk 0:02:57]} 9. Nbd2 {[%clk 0:02:21]}  Nb4 {[%clk 0:02:54]} 10. c3 {[%clk 0:02:15]}  Nc6 {[%clk 0:02:54]} 11. Re1 {[%clk 0:02:11]}  e5 {[%clk 0:02:53]} 12. e4 {[%clk 0:02:07]}  Bd7 {[%clk 0:02:45]} 13. h3 {[%clk 0:02:00]}  Re8 {[%clk 0:02:42]} 14. Qc2 {[%clk 0:01:50]}  exd4 {[%clk 0:02:37]} 15. cxd4 {[%clk 0:01:51]}  Nb4 {[%clk 0:02:37]} 16. Qc3 {[%clk 0:01:37]}  c5 {[%clk 0:02:16]} 17. dxc5 {[%clk 0:01:18]}  Nh5 {[%clk 0:02:04]} 18. e5 {[%clk 0:01:18]}  dxe5 {[%clk 0:01:40]} 0-1


[Site "https://www.chess.com"]

[Event "Titled Tuesday Blitz February 21 Early 2023"]
[White "Sokolovsky, Yahli"]
[Black "Karttunen, Mika"]
[WhiteFideId "2820242"]
[BlackFideId "502081"]
[WhiteElo "2461"]
[BlackElo "2490"]
[Result "0-1"]
[Round "07"]
[TimeControl "180+2"]
[Date "2023.02.21"]
[WhiteClock "0:00:04"]
[BlackClock "0:00:06"]

1. b3 {[%clk 0:03:00]}  d5 {[%clk 0:02:59]} 2. Bb2 {[%clk 0:03:00]}  Nf6 {[%clk 0:02:58]} 3. e3 {[%clk 0:03:00]}  e6 {[%clk 0:02:57]} 4. Nf3 {[%clk 0:02:57]}  Be7 {[%clk 0:02:57]} 5. d4 {[%clk 0:02:58]}  O-O {[%clk 0:02:57]} 6. Bd3 {[%clk 0:02:58]}  b6 {[%clk 0:02:55]} 7. O-O {[%clk 0:02:53]}  Ba6 {[%clk 0:02:55]} 8. Bxa6 {[%clk 0:02:54]}  Nxa6 {[%clk 0:02:55]} 9. Ne5 {[%clk 0:02:54]}  Nb8 {[%clk 0:02:54]} 10. Nd2 {[%clk 0:02:54]}  c5 {[%clk 0:02:54]} 11. f4 {[%clk 0:02:53]}  cxd4 {[%clk 0:02:53]} 12. exd4 {[%clk 0:02:53]}  Qc7 {[%clk 0:02:44]} 13. Rf3 {[%clk 0:02:46]}  Nbd7 {[%clk 0:02:34]} 14. Rc3 {[%clk 0:01:52]}  Qb7 {[%clk 0:02:31]} 15. Rg3 {[%clk 0:01:45]}  Rac8 {[%clk 0:02:21]} 16. c3 {[%clk 0:01:45]}  g6 {[%clk 0:01:54]} 17. Rh3 {[%clk 0:01:41]}  Nxe5 {[%clk 0:01:40]} 18. fxe5 {[%clk 0:01:41]}  Ne4 {[%clk 0:01:40]} 19. Nxe4 {[%clk 0:01:41]}  dxe4 {[%clk 0:01:40]} 20. Qe2 {[%clk 0:01:35]}  f5 {[%clk 0:01:33]} 21. exf6 {[%clk 0:01:35]}  Rxf6 {[%clk 0:01:30]} 22. Re3 {[%clk 0:01:04]}  Rcf8 {[%clk 0:01:25]} 23. Re1 {[%clk 0:01:05]}  Bd6 {[%clk 0:00:51]} 24. Rxe4 {[%clk 0:00:55]}  Rf2 {[%clk 0:00:51]} 25. Qxf2 {[%clk 0:00:40]}  Bxh2+ {[%clk 0:00:51]} 26. Kf1 {[%clk 0:00:41]}  Rxf2+ {[%clk 0:00:48]} 27. Kxf2 {[%clk 0:00:42]}  Qf7+ {[%clk 0:00:45]} 28. Ke2 {[%clk 0:00:32]}  Qf5 {[%clk 0:00:44]} 29. Kd1 {[%clk 0:00:31]}  Bg3 {[%clk 0:00:39]} 30. R1e2 {[%clk 0:00:30]}  h5 {[%clk 0:00:33]} 31. Kc2 {[%clk 0:00:21]}  h4 {[%clk 0:00:32]} 32. b4 {[%clk 0:00:17]}  g5 {[%clk 0:00:21]} 33. Kb3 {[%clk 0:00:17]}  g4 {[%clk 0:00:20]} 34. Rxe6 {[%clk 0:00:17]}  h3 {[%clk 0:00:19]} 35. gxh3 {[%clk 0:00:17]}  gxh3 {[%clk 0:00:19]} 36. Re8+ {[%clk 0:00:14]}  Kf7 {[%clk 0:00:19]} 37. R2e7+ {[%clk 0:00:14]}  Kg6 {[%clk 0:00:17]} 38. Rg8+ {[%clk 0:00:12]}  Kh5 {[%clk 0:00:15]} 39. Rxg3 {[%clk 0:00:08]}  h2 {[%clk 0:00:15]} 40. Re5 {[%clk 0:00:03]}  Qxe5 {[%clk 0:00:12]} 41. dxe5 {[%clk 0:00:04]}  h1=Q {[%clk 0:00:11]} 42. Re3 {[%clk 0:00:04]}  Qd5+ {[%clk 0:00:11]} 43. Kc2 {[%clk 0:00:05]}  Qe6 {[%clk 0:00:10]} 44. a4 {[%clk 0:00:04]}  Kg4 {[%clk 0:00:11]} 45. Bc1 {[%clk 0:00:05]}  Kf5 {[%clk 0:00:10]} 46. Kb2 {[%clk 0:00:05]}  a6 {[%clk 0:00:09]} 47. Ka3 {[%clk 0:00:05]}  b5 {[%clk 0:00:09]} 48. axb5 {[%clk 0:00:03]}  axb5 {[%clk 0:00:10]} 49. Kb2 {[%clk 0:00:04]}  Kg4 {[%clk 0:00:09]} 50. Bd2 {[%clk 0:00:04]}  Kf4 {[%clk 0:00:08]} 51. Rd3+ {[%clk 0:00:03]}  Ke4 {[%clk 0:00:08]} 52. Re3+ {[%clk 0:00:03]}  Kd5 {[%clk 0:00:08]} 53. Bc1 {[%clk 0:00:03]}  Kc4 {[%clk 0:00:08]} 54. Re4+ {[%clk 0:00:04]}  Kd3 {[%clk 0:00:08]} 55. Rd4+ {[%clk 0:00:04]}  Ke2 {[%clk 0:00:08]} 56. Bf4 {[%clk 0:00:04]}  Qf5 {[%clk 0:00:07]} 57. Bc1 {[%clk 0:00:02]}  Qxe5 {[%clk 0:00:06]} 58. Rd2+ {[%clk 0:00:03]}  Ke1 {[%clk 0:00:06]} 59. Rd4 {[%clk 0:00:04]}  Qe2+ {[%clk 0:00:06]} 60. Bd2+ {[%clk 0:00:05]}  Kd1 {[%clk 0:00:06]} 61. Kb3 {[%clk 0:00:05]}  Qe6+ {[%clk 0:00:05]} 62. Ka3 {[%clk 0:00:05]}  Kc2 {[%clk 0:00:05]} 63. c4 {[%clk 0:00:04]}  Qa6# {[%clk 0:00:06]} 0-1


[Site "https://www.chess.com"]

[Event "Titled Tuesday Blitz February 21 Early 2023"]
[White "Papasimakopoulos, Alexandros"]
[Black "Ilkhomi, Jaloliddin"]
[WhiteFideId "4244125"]
[BlackFideId "14700948"]
[WhiteElo "2401"]
[BlackElo "1997"]
[Result "1-0"]
[Round "07"]
[TimeControl "180+2"]
[Date "2023.02.21"]
[WhiteClock "0:01:35"]
[BlackClock "0:00:31"]

1. d4 {[%clk 0:03:00]}  Nf6 {[%clk 0:02:55]} 2. c4 {[%clk 0:03:00]}  e6 {[%clk 0:02:55]} 3. Nc3 {[%clk 0:02:59]}  Bb4 {[%clk 0:02:54]} 4. Qc2 {[%clk 0:03:00]}  O-O {[%clk 0:02:52]} 5. a3 {[%clk 0:02:59]}  Bxc3+ {[%clk 0:02:51]} 6. Qxc3 {[%clk 0:03:00]}  b6 {[%clk 0:02:52]} 7. Bg5 {[%clk 0:02:57]}  Bb7 {[%clk 0:02:52]} 8. f3 {[%clk 0:02:57]}  d6 {[%clk 0:02:50]} 9. e4 {[%clk 0:02:57]}  h6 {[%clk 0:02:49]} 10. Be3 {[%clk 0:02:57]}  Nc6 {[%clk 0:02:35]} 11. Bd3 {[%clk 0:02:54]}  e5 {[%clk 0:02:34]} 12. d5 {[%clk 0:02:54]}  Ne7 {[%clk 0:02:34]} 13. Ne2 {[%clk 0:02:53]}  Ng6 {[%clk 0:02:30]} 14. O-O {[%clk 0:02:53]}  Qe7 {[%clk 0:02:29]} 15. b4 {[%clk 0:02:53]}  a5 {[%clk 0:02:28]} 16. c5 {[%clk 0:02:53]}  axb4 {[%clk 0:02:26]} 17. axb4 {[%clk 0:02:53]}  bxc5 {[%clk 0:02:25]} 18. bxc5 {[%clk 0:02:54]}  Rxa1 {[%clk 0:02:21]} 19. Rxa1 {[%clk 0:02:53]}  Ra8 {[%clk 0:02:20]} 20. Rxa8+ {[%clk 0:02:52]}  Bxa8 {[%clk 0:02:21]} 21. c6 {[%clk 0:02:52]}  Nh5 {[%clk 0:02:17]} 22. g3 {[%clk 0:02:41]}  Nf6 {[%clk 0:02:13]} 23. Qa5 {[%clk 0:02:39]}  Qd8 {[%clk 0:02:13]} 24. Qa7 {[%clk 0:02:39]}  Ne7 {[%clk 0:02:09]} 25. Nc3 {[%clk 0:02:38]}  Ne8 {[%clk 0:02:08]} 26. Ba6 {[%clk 0:02:38]}  Nxc6 {[%clk 0:02:02]} 27. dxc6 {[%clk 0:02:35]}  Bxc6 {[%clk 0:02:03]} 28. Bc4 {[%clk 0:02:34]}  Nf6 {[%clk 0:02:02]} 29. Nb5 {[%clk 0:02:27]}  Bxb5 {[%clk 0:01:59]} 30. Bxb5 {[%clk 0:02:27]}  d5 {[%clk 0:01:59]} 31. Bc6 {[%clk 0:02:18]}  dxe4 {[%clk 0:01:57]} 32. Qa8 {[%clk 0:02:19]}  Qxa8 {[%clk 0:01:55]} 33. Bxa8 {[%clk 0:02:20]}  exf3 {[%clk 0:01:55]} 34. Bxf3 {[%clk 0:02:21]}  Kf8 {[%clk 0:01:53]} 35. Bc5+ {[%clk 0:02:20]}  Ke8 {[%clk 0:01:53]} 36. Bc6+ {[%clk 0:02:21]}  Kd8 {[%clk 0:01:51]} 37. Kf2 {[%clk 0:02:20]}  g6 {[%clk 0:01:50]} 38. Kf3 {[%clk 0:02:16]}  Nd7 {[%clk 0:01:49]} 39. Bb4 {[%clk 0:02:08]}  f5 {[%clk 0:01:48]} 40. Bd5 {[%clk 0:02:05]}  c5 {[%clk 0:01:48]} 41. Bd2 {[%clk 0:02:02]}  Nf6 {[%clk 0:01:42]} 42. Bf7 {[%clk 0:02:00]}  g5 {[%clk 0:01:42]} 43. Bg6 {[%clk 0:01:53]}  f4 {[%clk 0:01:34]} 44. gxf4 {[%clk 0:01:43]}  gxf4 {[%clk 0:01:27]} 45. Bc3 {[%clk 0:01:42]}  e4+ {[%clk 0:00:59]} 46. Bxe4 {[%clk 0:01:39]}  Ke7 {[%clk 0:00:52]} 47. Kxf4 {[%clk 0:01:37]}  Ke6 {[%clk 0:00:35]} 48. Bf3 {[%clk 0:01:34]}  Kf7 {[%clk 0:00:29]} 49. Kf5 {[%clk 0:01:34]}  Ng8 {[%clk 0:00:28]} 50. Bd5+ {[%clk 0:01:34]}  Kf8 {[%clk 0:00:28]} 51. Bxg8 {[%clk 0:01:33]}  Kxg8 {[%clk 0:00:29]} 52. Kg6 {[%clk 0:01:33]}  c4 {[%clk 0:00:29]} 53. Kxh6 {[%clk 0:01:34]}  Kf7 {[%clk 0:00:30]} 54. Kg5 {[%clk 0:01:34]}  Ke6 {[%clk 0:00:28]} 55. h4 {[%clk 0:01:34]}  Kf7 {[%clk 0:00:28]} 56. h5 {[%clk 0:01:34]}  Kg8 {[%clk 0:00:29]} 57. Kg6 {[%clk 0:01:34]}  Kf8 {[%clk 0:00:29]} 58. h6 {[%clk 0:01:34]}  Ke7 {[%clk 0:00:30]} 59. h7 {[%clk 0:01:35]}  Ke6 {[%clk 0:00:31]} 60. h8=Q {[%clk 0:01:35]} 1-0


[Site "https://www.chess.com"]

[Event "Titled Tuesday Blitz February 21 Early 2023"]
[White "Hristodoulou, Panagiotis"]
[Black "Vaibhav Jayant Raut"]
[WhiteFideId "4214340"]
[BlackFideId "5089034"]
[WhiteElo "2372"]
[BlackElo "2237"]
[Result "0-1"]
[Round "07"]
[TimeControl "180+2"]
[Date "2023.02.21"]
[WhiteClock "0:02:26"]
[BlackClock "0:01:59"]

1. e4 {[%clk 0:03:00]}  c5 {[%clk 0:02:55]} 2. Nf3 {[%clk 0:03:00]}  e6 {[%clk 0:02:53]} 3. d4 {[%clk 0:03:00]}  cxd4 {[%clk 0:02:53]} 4. Nxd4 {[%clk 0:03:01]}  a6 {[%clk 0:02:53]} 5. Bd3 {[%clk 0:03:00]}  Nf6 {[%clk 0:02:52]} 6. Nc3 {[%clk 0:02:59]}  Qc7 {[%clk 0:02:52]} 7. Qe2 {[%clk 0:02:58]}  d6 {[%clk 0:02:52]} 8. O-O {[%clk 0:02:56]}  Nbd7 {[%clk 0:02:50]} 9. f4 {[%clk 0:02:55]}  b5 {[%clk 0:02:48]} 10. a3 {[%clk 0:02:55]}  Bb7 {[%clk 0:02:47]} 11. Kh1 {[%clk 0:02:54]}  Be7 {[%clk 0:02:46]} 12. Bd2 {[%clk 0:02:53]}  h5 {[%clk 0:02:46]} 13. Rae1 {[%clk 0:02:53]}  h4 {[%clk 0:02:28]} 14. Nf3 {[%clk 0:02:42]}  Nh5 {[%clk 0:02:21]} 15. f5 {[%clk 0:02:35]}  e5 {[%clk 0:02:17]} 16. Nd5 {[%clk 0:02:30]}  Bxd5 {[%clk 0:02:14]} 17. exd5 {[%clk 0:02:31]}  Ndf6 {[%clk 0:02:10]} 18. c4 {[%clk 0:02:26]}  bxc4 {[%clk 0:02:01]} 19. Bxc4 {[%clk 0:02:27]}  Qb6 {[%clk 0:02:00]} 20. b4 {[%clk 0:02:26]}  Ng3+ {[%clk 0:01:59]} 0-1


[Site "https://www.chess.com"]

[Event "Titled Tuesday Blitz February 21 Early 2023"]
[White "Jaskolka, Tomasz"]
[Black "Tan, Jun Ying"]
[WhiteFideId "1170791"]
[BlackFideId "5710413"]
[WhiteElo "2238"]
[BlackElo "2307"]
[Result "1-0"]
[Round "07"]
[TimeControl "180+2"]
[Date "2023.02.21"]
[WhiteClock "0:00:49"]
[BlackClock "0:01:34"]

1. d4 {[%clk 0:02:52]}  d5 {[%clk 0:02:59]} 2. c4 {[%clk 0:02:49]}  c6 {[%clk 0:02:59]} 3. Nf3 {[%clk 0:02:49]}  Nf6 {[%clk 0:02:59]} 4. g3 {[%clk 0:02:50]}  a6 {[%clk 0:02:57]} 5. c5 {[%clk 0:02:44]}  Bf5 {[%clk 0:02:50]} 6. Bg2 {[%clk 0:02:43]}  Nbd7 {[%clk 0:02:49]} 7. Nc3 {[%clk 0:02:43]}  h6 {[%clk 0:02:49]} 8. Qb3 {[%clk 0:02:37]}  Qc8 {[%clk 0:02:48]} 9. h4 {[%clk 0:02:28]}  e6 {[%clk 0:02:47]} 10. Bf4 {[%clk 0:02:23]}  Be7 {[%clk 0:02:46]} 11. O-O {[%clk 0:02:21]}  O-O {[%clk 0:02:45]} 12. Ne5 {[%clk 0:02:21]}  Nxe5 {[%clk 0:02:44]} 13. Bxe5 {[%clk 0:02:22]}  Nd7 {[%clk 0:02:41]} 14. Bf4 {[%clk 0:02:14]}  e5 {[%clk 0:02:41]} 15. Bxe5 {[%clk 0:02:01]}  Nxe5 {[%clk 0:02:38]} 16. dxe5 {[%clk 0:02:02]}  Bxc5 {[%clk 0:02:38]} 17. Rac1 {[%clk 0:02:01]}  Be6 {[%clk 0:02:15]} 18. Na4 {[%clk 0:01:32]}  Ba7 {[%clk 0:02:15]} 19. Nb6 {[%clk 0:01:32]}  Bxb6 {[%clk 0:02:15]} 20. Qxb6 {[%clk 0:01:33]}  Qd7 {[%clk 0:02:15]} 21. e3 {[%clk 0:01:29]}  Rab8 {[%clk 0:02:10]} 22. b4 {[%clk 0:01:28]}  Qd8 {[%clk 0:02:07]} 23. Qc5 {[%clk 0:01:24]}  f6 {[%clk 0:01:50]} 24. exf6 {[%clk 0:01:19]}  Qxf6 {[%clk 0:01:50]} 25. e4 {[%clk 0:01:12]}  dxe4 {[%clk 0:01:47]} 26. Bxe4 {[%clk 0:01:12]}  Bxa2 {[%clk 0:01:47]} 27. Rcd1 {[%clk 0:00:56]}  Rbd8 {[%clk 0:01:35]} 28. Qb6 {[%clk 0:00:52]}  Qf7 {[%clk 0:01:34]} 29. Rxd8 {[%clk 0:00:49]} 1-0


[Site "https://www.chess.com"]

[Event "Titled Tuesday Blitz February 21 Early 2023"]
[White "Aldokhin, Ivan"]
[Black "Zacurdajev, Dmitry"]
[WhiteFideId "24115720"]
[BlackFideId "4196309"]
[WhiteElo "2413"]
[BlackElo "2273"]
[Result "1-0"]
[Round "07"]
[TimeControl "180+2"]
[Date "2023.02.21"]
[WhiteClock "0:00:21"]
[BlackClock "0:00:02"]

1. e4 {[%clk 0:03:00]}  c6 {[%clk 0:03:00]} 2. Nc3 {[%clk 0:02:59]}  d5 {[%clk 0:03:01]} 3. d4 {[%clk 0:02:59]}  dxe4 {[%clk 0:03:00]} 4. Nxe4 {[%clk 0:03:00]}  Nf6 {[%clk 0:03:01]} 5. Nxf6+ {[%clk 0:02:59]}  exf6 {[%clk 0:03:02]} 6. c3 {[%clk 0:02:59]}  Bd6 {[%clk 0:03:02]} 7. Bd3 {[%clk 0:03:00]}  Na6 {[%clk 0:03:03]} 8. Ne2 {[%clk 0:03:01]}  Nc7 {[%clk 0:03:03]} 9. Qc2 {[%clk 0:03:01]}  h5 {[%clk 0:03:02]} 10. Bd2 {[%clk 0:03:01]}  Be6 {[%clk 0:03:02]} 11. Nf4 {[%clk 0:02:59]}  Bxf4 {[%clk 0:02:57]} 12. Bxf4 {[%clk 0:02:59]}  Nd5 {[%clk 0:02:58]} 13. Bd2 {[%clk 0:02:59]}  b5 {[%clk 0:02:58]} 14. O-O {[%clk 0:02:55]}  h4 {[%clk 0:02:55]} 15. h3 {[%clk 0:02:39]}  Qd7 {[%clk 0:02:44]} 16. b3 {[%clk 0:02:36]}  Kf8 {[%clk 0:02:10]} 17. c4 {[%clk 0:02:32]}  bxc4 {[%clk 0:02:11]} 18. bxc4 {[%clk 0:02:32]}  Nb6 {[%clk 0:02:09]} 19. Bb4+ {[%clk 0:02:12]}  Kg8 {[%clk 0:02:09]} 20. Bc5 {[%clk 0:02:12]}  Rh5 {[%clk 0:02:05]} 21. f4 {[%clk 0:02:00]}  Rd8 {[%clk 0:01:43]} 22. f5 {[%clk 0:01:33]}  Bxc4 {[%clk 0:01:16]} 23. Bxc4 {[%clk 0:01:33]}  Nxc4 {[%clk 0:01:16]} 24. Qxc4 {[%clk 0:01:33]}  Rxf5 {[%clk 0:01:16]} 25. Rxf5 {[%clk 0:01:29]}  Qxf5 {[%clk 0:01:17]} 26. Bxa7 {[%clk 0:01:30]}  Qe4 {[%clk 0:01:08]} 27. Bc5 {[%clk 0:01:26]}  Ra8 {[%clk 0:01:03]} 28. a4 {[%clk 0:01:26]}  Rb8 {[%clk 0:01:03]} 29. a5 {[%clk 0:00:45]}  Rb2 {[%clk 0:00:46]} 30. Qf1 {[%clk 0:00:45]}  Qe3+ {[%clk 0:00:42]} 31. Kh1 {[%clk 0:00:44]}  Rf2 {[%clk 0:00:42]} 32. Qg1 {[%clk 0:00:40]}  Qg3 {[%clk 0:00:19]} 33. a6 {[%clk 0:00:38]}  Rf3 {[%clk 0:00:09]} 34. a7 {[%clk 0:00:35]}  g5 {[%clk 0:00:03]} 35. a8=Q+ {[%clk 0:00:34]}  Kg7 {[%clk 0:00:03]} 36. Qf8+ {[%clk 0:00:27]}  Kg6 {[%clk 0:00:02]} 37. Qg8+ {[%clk 0:00:26]}  Kf5 {[%clk 0:00:03]} 38. Qh7+ {[%clk 0:00:22]}  Kf4 {[%clk 0:00:02]} 39. Bd6# {[%clk 0:00:21]} 1-0


[Site "https://www.chess.com"]